[Event "39th Muensterland Open 2022"]
[Site "Muenster"]
[Date "2022.10.07"]
[Round "8.5"]
[White "Holtel, Jasper"]
[Black "Scholz, Christian"]
[Result "0-1"]
[ECO "A49"]
[WhiteElo "2413"]
[BlackElo "2332"]
[Annotator "TA"]
[PlyCount "144"]
[EventDate "2022.10.01"]
[EventType "swiss"]
[EventCountry "GER"]
[SourceTitle "playchess.com"]
[Source "ChessBase"]
[SourceQuality "1"]
[TimeControl "40/5400+30:1800+30"]

{[%evp 10,144,18,19,6,14,16,18,57,39,51,27,12,22,36,38,34,42,38,43,41,43,43,35,36,40,37,42,28,35,28,31,44,37,34,7,35,0,0,0,0,0,22,22,27,27,27,27,39,24,65,54,61,28,13,8,9,9,9,8,8,0,7,10,37,10,17,0,0,0,0,-29,-32,-31,0,-16,-9,-9,-8,-58,-62,-154,-137,-198,-192,-200,-147,-368,-329,-385,-402,-489,-446,-470,-419,-540,-546,-544,-448,-685,-672,-656,-650,-756,-590,-550,-534,-533,-529,-524,-510,-477,-445,-842,-644,-1156,-838,-1761,-1707,-1694,-1638,-1442,-1081,-2097,-1787,-2226,-2115,-5918,-4095,-6756,-5595,-12836,-12836,-12842,-12843,-12836,-12824]} 1. Nf3 {[%emt 0:00:03]} Nf6 {[%emt 0:00:04]} 2. g3 {[%emt 0:00:07]} g6 {[%emt 0:00:05]} 3. b3 {[%emt 0:00:05]} Bg7 {[%emt 0:00:04]} 4. Bb2 {[%emt 0:00:06]} O-O {[%emt 0:00:06]} 5. Bg2 {[%emt 0:00:07]} d6 {[%emt 0:00:06]} 6. d4 {[%emt 0:00:08]} b5 {[%emt 0:00:07] A49: 1 d4 Nf6 2 Nf3 g6 3 g3: Anti-King's Indian systems.} 7. O-O {[%emt 0:00:12][%cal Of3e5]} Bb7 {[%emt 1:33:28]} 8. Qd3 {[%emt 0:01:12] [#]} Qe8 $146 {[%emt 0:00:00][%cal Oe7e5] The position is equal.} ({Predecessor:} 8... a6 9. Nbd2 Nbd7 10. c4 c5 11. d5 Nb6 12. Qc2 bxc4 13. bxc4 a5 14. e4 Ba6 {½-½ (67) Artemiev,V (2709)-Carlsen,M (2847) chess24.com INT 2021}) 9. Nbd2 {[%emt 0:11:19][%cal Bb1d2,Bd2c4,Bc4a5,Ba5c6][%mdl 32]} b4 {[%emt 0:00:00]} 10. c4 {[%emt 0:03:58]} bxc3 {[%emt 0:00:00]} 11. Qxc3 {[%emt 0:00:34]} Na6 {[%emt 0:00:00]} 12. Qa5 {[%emt 1:18:39]} c5 {[%emt 0:00:00]} 13. Rac1 {[%emt 0:01:47]} Qd8 {[%emt 0:00:00]} 14. Nc4 {[%emt 0:02:58]} Rc8 {[%emt 0:00:00]} 15. dxc5 {[%emt 0:19:14]} Rxc5 {[%emt 0:00:00]} 16. Qxd8 {[%emt 0:00:36]} Rxd8 {[%emt 0:00:00]} 17. Bd4 {[%emt 0:00:30]} Rc7 {[%emt 0:00:00]} 18. Na5 {[%emt 0:04:31] [#] Threatens to win with Rxc7.} Be4 {[%emt 0:00:00]} 19. Rxc7 {[%emt 0:06:04]} Nxc7 {[%emt 0:00:00]} 20. Rc1 {[%emt 0:00:30]} Ne6 {[%emt 0:06:30]} 21. Be3 {[%emt 0:08:55]} Nd5 {[%emt 0:00:00]} 22. Nc6 {[%emt 0:03:50]} Rd7 {[%emt 0:00:00]} 23. Nfe5 {[%emt 0:10:23]} Bxe5 {[%emt 0:00:00]} 24. Bxe4 {[%emt 0:00:12]} Nxe3 {[%emt 0:00:00]} 25. fxe3 {[%emt 0:00:53]} Bf6 {[%emt 0:00:00]} 26. b4 {[%emt 0:00:48][%cal Bb3b4,Bb4b5][%mdl 32]} Rc7 {[%emt 0:00:00]} 27. Rb1 {[%emt 0:06:21]} Kf8 {[%emt 0:00:00]} 28. a4 {[%emt 0:12:58]} Ke8 {[%emt 0:00:00]} 29. a5 {[%emt 0:01:58]} Kd7 {[%emt 0:00:00]} 30. b5 {[%emt 0:07:12][%cal Oc6a7] Strongly threatening Nxa7!} Nc5 {[%emt 0:00:00]} 31. Bf3 {[%emt 0:00:14]} e6 {[%emt 0:04:55]} 32. Nb8+ {[%emt 0:01:07]} Kc8 {[%emt 0:00:10]} 33. b6 {[%emt 0:00:30]} Kxb8 {[%emt 0:03:18]} ({Much less strong is} 33... axb6 34. axb6 Rb7 35. Nc6 $14) 34. bxc7+ {[%emt 0:00:10]} Kxc7 $11 {[%emt 0:00:02][%mdl 4096] Endgame KRB-KBN} 35. Rc1 {[%emt 0:02:05]} Bg5 {[%emt 0:01:43]} 36. Kf2 {[%emt 0:03:23]} h5 {[%emt 0:04:22]} 37. Rc4 {[%emt 0:00:33]} (37. Be4 $5) 37... Be7 {[%emt 0:04:36]} 38. Rc2 {[%emt 0:00:50]} Bd8 {[%emt 0:00:56]} 39. Ra2 {[%emt 0:02:36]} d5 {[%emt 0:00:22]} 40. Rc2 {[%emt 0:00:31]} Kd6 {[%emt 0:00:20]} 41. Ra2 {[%emt 0:02:30]} Bc7 {[%emt 0:03:56]} 42. Bg2 {[%emt 0:00:54]} Kc6 {[%emt 0:05:21]} 43. e4 {[%emt 0:04:16]} dxe4 {[%emt 0:00:16]} 44. Ke3 {[%emt 0:00:39]} (44. Bf1 $11) 44... f5 $15 {[%emt 0:00:07]} 45. Kd4 {[%emt 0:01:21]} (45. Bf1 $15) 45... Nb3+ $17 {[%emt 0:02:04]} 46. Kc4 {[%emt 0:00:13]} (46. Kc3 $17 Nxa5 47. Kb4) 46... Nxa5+ $19 {[%emt 0:00:29]} 47. Kb4 {[%emt 0:00:11]} Kd5 {[%emt 0:00:26]} 48. e3 $2 {[%emt 0:04:06] Now White is beyond hope.} (48. Kb5 $17 {was worth a try.}) 48... Nc4 {[%emt 0:00:40]} 49. Rxa7 {[%emt 0:00:46]} Bd6+ {[%emt 0:00:10]} 50. Kc3 {[%emt 0:00:18]} Nxe3 {[%emt 0:00:07]} 51. Bh1 {[%emt 0:00:41]} Be5+ {[%emt 0:02:33]} 52. Kd2 {[%emt 0:01:01]} Nf1+ {[%emt 0:00:07] Black is clearly winning.} 53. Ke2 {[%emt 0:00:24]} Nxh2 {[%emt 0:00:05]} 54. Ra3 {[%emt 0:00:08]} (54. Ra5+ $142 Kd6 55. Ra6+ Ke7 56. Ra3) 54... Bd6 {[%emt 0:01:26]} 55. Ra5+ {[%emt 0:00:42]} Kd4 {[%emt 0:23:41]} 56. Ra6 {[%emt 0:00:23]} Ke5 {[%emt 0:00:08]} 57. Bg2 {[%emt 0:00:19]} Bc7 {[%emt 0:00:37]} 58. Ra7 {[%emt 0:00:43]} Bb6 {[%emt 0:00:15]} 59. Ra6 {[%emt 0:00:14]} Bd4 {[%emt 0:24:29]} 60. Ra4 {[%emt 0:00:28]} Ng4 {[%emt 0:00:45]} 61. Bh3 {[%emt 0:00:22]} (61. Ra5+ $142 Kf6 62. Ra8) 61... Ne3 {[%emt 0:00:27] aiming for ...g5.} 62. Ke1 {[%emt 0:01:06] [#]} Kf6 $1 {[%emt 0:03:29]} 63. Ke2 {[%emt 0:01:44]} (63. Kf2 Bc5) 63... e5 {[%emt 0:05:43]} 64. Ra8 {[%emt 0:01:01]} Kg5 {[%emt 0:00:40]} 65. Rh8 {[%emt 0:00:11]} Nd5 {[%emt 0:01:04] White must now prevent ...f4.} 66. Kf1 {[%emt 0:00:40]} Nc3 {[%emt 0:01:22]} 67. Ke1 {[%emt 0:00:32]} e3 {[%emt 0:14:45][%cal Be4e3,Be3e2][%mdl 32]} 68. Bg2 {[%emt 0:00:41]} Kg4 {[%emt 0:00:28]} 69. Rg8 {[%emt 0:00:09]} g5 {[%emt 0:00:05]} 70. Bc6 {[%emt 0:18:50]} e2 {[%emt 0:00:49]} 71. Bb7 {[%emt 0:01:02]} e4 {[%emt 0:00:19] ( -> ...Kf3)} 72. Ba6 {[%emt 0:01:26]} Kf3 {[%emt 0:00:09] Weighted Error Value: White=0.26 (precise) /Black=0.12 (very precise)} 0-1

[Event "39th Muensterland Open 2022"]
[Site "Muenster"]
[Date "2022.10.07"]
[Round "8.6"]
[White "Stillger, Bernhard"]
[Black "Junk, Phillip"]
[Result "1-0"]
[ECO "D02"]
[WhiteElo "2279"]
[BlackElo "2085"]
[Annotator "TA"]
[PlyCount "63"]
[EventDate "2022.10.01"]
[EventType "swiss"]
[EventCountry "GER"]
[SourceTitle "playchess.com"]
[Source "ChessBase"]
[SourceQuality "1"]
[TimeControl "40/5400+30:1800+30"]

{[%evp 22,62,45,22,48,42,48,41,45,47,69,50,47,56,45,20,71,77,112,71,97,89,127,98,111,118,265,258,258,258,255,254,277,258,272,266,807,796,807,787,29996,29997,29999]} 1. d4 {[%emt 0:00:02]} d5 {[%emt 0:00:06]} 2. c4 {[%emt 0:00:03]} e6 {[%emt 0:00:15]} 3. Nf3 {[%emt 0:00:07]} Nf6 {[%emt 0:00:18][%cal Bg8f6,Bf6d5,Bd5b4][%mdl 32]} 4. g3 {[%emt 0:00:40]} c5 {[%emt 0:02:37]} 5. cxd5 {[%emt 0:00:36]} Nxd5 {[%emt 0:03:01]} 6. Bg2 {[%emt 0:01:21]} cxd4 {[%emt 0:03:12]} 7. O-O {[%emt 0:03:56]} Be7 {[%emt 0:03:06]} 8. Nxd4 {[%emt 0:00:53]} O-O {[%emt 0:02:58]} 9. e4 {[%emt 0:08:07]} Nb4 {[%emt 0:02:46]} 10. Nc3 {[%emt 0:07:39]} N8c6 {[%emt 1:17:11]} 11. Nxc6 {[%emt 0:03:38]} Nxc6 {[%emt 0:01:21]} 12. Be3 {[%emt 0:01:03]} e5 {[%emt 0:14:58] D02: 1 d4 d5 2 Nf3 sidelines, including 2...Nf6 3 g3 and 2...Nf6 3 Bf4.} 13. Nd5 {[%emt 0:03:52]} Be6 {[%emt 0:06:12]} 14. Qa4 {[%emt 0:08:45]} Bd6 {[%emt 0:51:19] White is slightly better.} 15. Rfd1 {[%emt 0:07:54] [#]} Qb8 $146 {[%emt 0:02:39]} ({Predecessor:} 15... Qa5 16. Qxa5 Nxa5 17. Rac1 Rfd8 18. f4 Nc6 19. a3 f6 20. Bf1 Ne7 21. Nxe7+ Bxe7 22. Rxd8+ Bxd8 {½-½ (56) Sivuk,V (2552)-Cruz Lledo,P (2425) Valencia 2021}) 16. Rd2 {[%emt 0:03:39]} b5 {[%emt 0:01:14]} 17. Qd1 {[%emt 0:05:52]} Rd8 {[%emt 0:00:36]} 18. Qh5 {[%emt 0:04:27]} Qb7 {[%emt 0:04:44]} (18... Ne7 $11) 19. Rad1 $16 {[%emt 0:08:26][%cal Ba1d1,Bd1c1,Bc1c6,Bc6c7,Bc7f7][%mdl 32]} Bf8 {[%emt 0:01:39]} 20. Bh3 {[%emt 0:29:30]} Bxh3 {[%emt 0:06:40]} 21. Qxh3 {[%emt 0:00:17]} Kh8 {[%emt 0:04:14]} 22. Rc1 {[%emt 0:05:14]} Rac8 {[%emt 0:05:25]} 23. Rdc2 {[%emt 0:23:34] White is much more active.} Bd6 {[%emt 0:00:53] [#] Loses the game.} (23... Ne7 $16 {keeps fighting.}) 24. Bg5 $1 $18 {[%emt 0:03:30][%cal Od5f6] White wants to mate with Nf6!} Be7 {[%emt 0:02:39] [#] Inhibits Nf6.} 25. Rxc6 $1 {[%emt 0:04:33][%mdl 512]} Rxc6 {[%emt 0:00:05]} 26. Rxc6 {[%emt 0:00:07]} Bxg5 {[%emt 0:00:36]} 27. Rc7 {[%emt 0:00:57]} Qa6 {[%emt 0:00:07]} 28. Rxf7 {[%emt 0:01:17] Hoping for Qf5.} Qxa2 $2 {[%emt 0:01:41]} (28... Qg6) 29. Qf5 {[%emt 0:00:11][%csl LRe5,LRg5] Intending Rf8+ and mate.} Rg8 {[%emt 0:03:53]} 30. h4 {[%emt 0:06:25]} Bh6 {[%emt 0:03:14] [#]} 31. Nf6 $1 {[%emt 0:00:44][%csl Gf6][%cal Rf5h7][%mdl 512]} Qxf7 {[%emt 0:00:46]} (31... Qb1+ 32. Kg2) 32. Qxh7# {[%emt 0:09:30] Weighted Error Value: White=0.07 (flawless) /Black=0.58} 1-0

[Event "39th Muensterland Open 2022"]
[Site "Muenster"]
[Date "2022.10.07"]
[Round "8.7"]
[White "Berger, Konstantin"]
[Black "Ollenberger, Roland"]
[Result "0-1"]
[ECO "C00"]
[WhiteElo "2078"]
[BlackElo "2256"]
[Annotator "TA"]
[PlyCount "71"]
[EventDate "2022.10.01"]
[EventType "swiss"]
[EventCountry "GER"]
[SourceTitle "playchess.com"]
[Source "ChessBase"]
[SourceQuality "1"]
[TimeControl "40/5400+30:1800+30"]

{[%evp 12,71,43,53,52,50,52,38,37,16,25,23,56,26,25,21,22,10,24,0,0,-33,-28,-27,-39,-58,-66,-82,-79,-89,-73,-105,-71,-124,-125,-121,-116,-116,0,-162,-110,-140,-141,-154,-135,-1041,-1026,-1028,-1016,-1398,-1374,-2989,-2692,-29987,-29988,-29988,-29989,-29989,-29990,-29990,-29991,-29995]} 1. e4 {[%emt 0:00:01]} c5 {[%emt 0:01:27]} 2. Nf3 {[%emt 0:00:11]} e6 {[%emt 0:00:13]} 3. g3 {[%emt 0:01:19]} Nc6 {[%emt 0:02:10]} 4. Bg2 {[%emt 0:00:13]} Nf6 {[%emt 0:09:12]} 5. Qe2 {[%emt 0:00:48]} Qc7 {[%emt 0:05:23]} 6. O-O {[%emt 0:02:13]} d6 {[%emt 0:02:01] 6...Be7 is the fancy move.} 7. c3 {[%emt 0:02:34]} e5 {[%emt 0:03:11] C00: French: Unusual White 2nd moves.} 8. h3 {[%emt 0:02:48][%cal Od2d4]} Be7 {[%emt 0:01:19] [#]} 9. Na3 $146 {[%emt 0:00:38][%cal Od2d4]} ({Predecessor:} 9. Rd1 O-O 10. d4 cxd4 11. cxd4 b6 12. Nc3 Bb7 13. Bg5 h6 14. Bxf6 Bxf6 15. Nd5 {1-0 (42) Spitzl,V (2063)-Metzdorf,M (1864) Playchess.com INT 2020}) 9... a6 {[%emt 0:04:05] White is slightly better.} 10. Nc2 {[%emt 0:02:28]} O-O {[%emt 0:02:12]} 11. d4 {[%emt 0:09:41]} b5 {[%emt 0:10:26]} 12. Bg5 {[%emt 0:05:07]} h6 {[%emt 0:09:44]} 13. Bxf6 {[%emt 0:18:35]} Bxf6 {[%emt 0:02:47]} 14. d5 {[%emt 0:00:04]} Na5 {[%emt 0:02:26][%cal Bc6a5,Ba5b7,Bb7c5,Bc5d3][%mdl 32]} 15. Nd2 {[%emt 0:03:51]} c4 {[%emt 0:05:58]} 16. a4 {[%emt 0:05:02]} Bd7 {[%emt 0:00:35]} 17. axb5 {[%emt 0:01:55]} axb5 {[%emt 0:00:11]} 18. Ra3 {[%emt 0:01:10]} Nb7 {[%emt 0:06:17]} 19. Rfa1 {[%emt 0:00:21]} Rxa3 {[%emt 0:00:13]} 20. Rxa3 {[%emt 0:00:02]} Nc5 {[%emt 0:00:13]} 21. Qd1 {[%emt 0:06:17]} Nd3 {[%emt 0:02:39]} 22. Qa1 {[%emt 0:10:20]} (22. b4 $142) 22... Bg5 $17 {[%emt 0:02:28]} 23. Nf1 {[%emt 0:00:53]} Bc1 {[%emt 0:01:02]} 24. Ra2 {[%emt 0:06:59] [#]} f5 {[%emt 0:02:57]} ({Black should play} 24... Qc5 $1 $17 {[%cal Rc5f2]} 25. Nfe3 f5 26. exf5 Bxf5) 25. exf5 $2 {[%emt 0:02:17]} (25. Nb4 $11 Bxb2 26. Rxb2 Nxb2 27. Qxb2) 25... Qc5 {[%emt 0:03:17]} ({Not} 25... Rxf5 26. Nb4 Rxf2 27. Nxd3 cxd3 28. Ra8+ (28. Kxf2 $2 {is the wrong capture.} Qc5+ 29. Ke1 d2+ 30. Nxd2 Bxd2+ 31. Kxd2 Qf2+ 32. Kc1 Qg1+ 33. Kc2 Qxg2+ 34. Kc1 Qf1+ 35. Kd2 Qg2+ 36. Kc1 Qh1+ 37. Kd2 Qh2+ 38. Kc1 Qh1+ 39. Kd2 Qh2+ 40. Kc1 Qh1+ $19) 28... Kh7 29. Be4+ (29. Kxf2 Qc5+ 30. Ke1 d2+ 31. Nxd2 Bxd2+ 32. Kxd2 Qf2+ 33. Kd1 Qg1+ 34. Ke2 Qxg2+ 35. Ke3 Qxg3+ 36. Ke2 Qg2+ 37. Ke1 Qxh3 $19) 29... Bf5 30. Kxf2 $15 (30. Bxf5+ $2 Rxf5 31. Qxc1 Qc5+ 32. Ne3 Rf3 $19)) (25... Bxf5 $19 {aiming for ...Qf7.} 26. Nfe3 Bg6) 26. Nce3 {[%emt 0:00:18]} Bxf5 {[%emt 0:00:29] And now ...Bc8 would win. Black has more active pieces.} 27. Ra8 {[%emt 0:04:36] [#]} Bc8 $1 $36 {[%emt 0:00:24][%mdl 2048] White is under strong pressure.} (27... Bxb2 28. Rxf8+ Kxf8 29. Qa5 $11) 28. b4 {[%emt 0:02:45][%mdl 8192] This move loses the game for White.} (28. Nd1 $17) 28... cxb3 $19 {[%emt 0:00:44]} 29. Qb1 {[%emt 0:00:44]} Qxc3 {[%emt 0:03:48] White must now prevent ...Bxe3.} 30. Be4 {[%emt 0:00:24]} Nxf2 {[%emt 0:03:05]} 31. Bf5 {[%emt 0:03:11]} Bxe3 {[%emt 0:00:42]} 32. Bxc8 {[%emt 0:03:21]} Ne4+ {[%emt 0:01:02] Black mates.} 33. Kh1 {[%emt 0:00:23]} Rxf1+ {[%emt 0:01:02]} 34. Qxf1 {[%emt 0:00:05]} Nxg3+ {[%emt 0:00:05]} 35. Kg2 {[%emt 0:00:08]} Nxf1 {[%emt 0:00:14]} 36. Ra2 {[%emt 0:02:00] Weighted Error Value: White=1.04/Black=0.10 (very precise)} 0-1

[Event "39th Muensterland Open 2022"]
[Site "Muenster"]
[Date "2022.10.07"]
[Round "8.8"]
[White "Schmitzer, Klaus"]
[Black "Weidemann, Jakob"]
[Result "1/2-1/2"]
[ECO "A45"]
[WhiteElo "2250"]
[BlackElo "2084"]
[Annotator "TA"]
[PlyCount "48"]
[EventDate "2022.10.01"]
[EventType "swiss"]
[EventCountry "GER"]
[SourceTitle "playchess.com"]
[Source "ChessBase"]
[SourceQuality "1"]
[TimeControl "40/5400+30:1800+30"]

{[%evp 9,48,8,32,22,30,10,14,0,12,11,42,33,39,33,106,112,127,71,78,87,76,74,91,68,67,33,36,37,43,35,49,8,42,37,35,0,0,-8,-10,-15,0]} 1. d4 {[%emt 0:00:19]} Nf6 {[%emt 0:00:09]} 2. Bg5 {[%emt 0:00:18]} Ne4 {[%emt 0:00:11]} 3. Bf4 {[%emt 0:00:17]} d5 {[%emt 0:00:10]} 4. e3 {[%emt 0:00:38]} c5 {[%emt 0:00:14]} 5. Bd3 {[%emt 0:06:15]} Nf6 {[%emt 0:00:09]} 6. Nf3 {[%emt 0:04:11] A45: Trompowsky Attack.} Nc6 {[%emt 0:02:07]} 7. Nbd2 {[%emt 0:07:12]} c4 {[%emt 0:01:19]} 8. Be2 {[%emt 0:00:15]} Bf5 {[%emt 0:00:23] [#]} 9. Nh4 $146 {[%emt 0:01:58]} ({Predecessor:} 9. O-O e6 10. Ne5 Nxe5 11. dxe5 Nd7 12. e4 Bg6 13. exd5 exd5 14. Nf3 Nc5 15. Bg5 Qd7 16. Nh4 Ne6 17. Bg4 {1-0 (66) Hutchinson,P (2120)-Sheikh,A (1837) Newcastle on Tyne 2021}) 9... Bg6 {[%emt 0:02:18]} 10. O-O {[%emt 0:04:13]} e6 {[%emt 0:00:49]} 11. c3 {[%emt 0:09:18]} Nh5 {[%emt 0:06:04]} 12. Bxh5 $16 {[%emt 0:05:07]} ({Don't take} 12. Nxg6 hxg6 13. Bxh5 Rxh5 $14) 12... Qxh4 {[%emt 0:00:12] [#]} 13. Bxg6 {[%emt 0:00:34]} ({White should try} 13. Bf3 $1) 13... hxg6 {[%emt 0:00:12]} 14. b3 {[%emt 0:00:38]} cxb3 {[%emt 0:10:41]} 15. Qxb3 {[%emt 0:04:05]} Qe7 {[%emt 0:09:28]} 16. Rab1 {[%emt 0:04:22] White is more active.} b6 $1 {[%emt 0:00:48]} 17. Qa4 {[%emt 0:07:08]} Rc8 {[%emt 0:00:58]} 18. c4 {[%emt 0:06:54]} Qd7 {[%emt 0:00:15]} 19. cxd5 {[%emt 0:04:14]} exd5 {[%emt 0:01:19]} 20. h3 {[%emt 0:07:59]} Bd6 {[%emt 0:04:50]} (20... Na5 $5 {[%cal Rd7a4]} 21. Qxd7+ Kxd7 $11) 21. Bxd6 {[%emt 0:01:08]} Qxd6 {[%emt 0:00:09]} 22. e4 {[%emt 0:00:30]} O-O {[%emt 0:00:51] The position is equal.} 23. exd5 {[%emt 0:05:51]} Qxd5 {[%emt 0:00:38]} 24. Nf3 {[%emt 0:00:12]} Rfe8 {[%emt 0:02:46] Weighted Error Value: White=0.13 (very precise) /Black=0.09 (flawless)} 1/2-1/2

[Event "39th Muensterland Open 2022"]
[Site "Muenster"]
[Date "2022.10.07"]
[Round "8.9"]
[White "Bentel, Robin"]
[Black "Spriestersbach, Kai"]
[Result "1-0"]
[ECO "E97"]
[WhiteElo "2247"]
[BlackElo "2043"]
[Annotator "TA"]
[PlyCount "133"]
[EventDate "2022.10.01"]
[EventType "swiss"]
[EventCountry "GER"]
[SourceTitle "playchess.com"]
[Source "ChessBase"]
[SourceQuality "1"]
[TimeControl "40/5400+30:1800+30"]

{[%evp 21,133,25,47,29,54,23,47,27,65,45,45,34,61,24,0,20,24,12,25,18,43,42,45,45,69,56,105,100,87,77,81,74,120,106,104,74,97,96,100,87,108,99,103,102,93,77,91,91,137,129,124,138,261,263,260,235,288,210,216,213,725,421,416,411,412,402,420,436,420,413,502,488,495,489,510,473,508,506,512,504,438,156,455,436,436,433,662,608,2261,2108,29981,29982,4866,910,1060,1061,1008,1032,5776,639,3291,4594,10758,9764,2345,1445,9788,9727,7535,6713,10474,6056,4614,650]} 1. d4 {[%emt 0:00:07]} Nf6 {[%emt 0:00:04]} 2. c4 {[%emt 0:00:06]} g6 {[%emt 0:00:04]} 3. Nc3 {[%emt 0:00:08]} Bg7 {[%emt 0:00:04]} 4. e4 {[%emt 0:00:17]} d6 {[%emt 0:00:05]} 5. Nf3 {[%emt 0:00:25]} O-O {[%emt 0:00:07]} 6. Be2 {[%emt 0:00:06]} e5 {[%emt 0:00:06]} 7. Be3 {[%emt 0:00:22]} Ng4 {[%emt 0:00:30]} 8. Bg5 {[%emt 0:00:09]} f6 {[%emt 0:00:05]} 9. Bc1 {[%emt 0:00:18]} exd4 {[%emt 0:00:18]} 10. Nxd4 {[%emt 0:00:45]} f5 {[%emt 0:00:08]} 11. O-O {[%emt 0:06:59]} Nc6 {[%emt 0:05:46]} 12. Nxc6 {[%emt 0:04:44] E97: King's Indian: Classical Main Line (6...e5 7 0-0 Nc6): 8 Be3 and 8 d5 Ne7, not 9 Ne1.} bxc6 {[%emt 0:00:08]} 13. exf5 {[%emt 0:01:59]} gxf5 {[%emt 0:00:46]} 14. Bf4 {[%emt 0:02:47][%cal Oc4c5] [#] White is slightly better.} (14. h3 $5 {[%cal Rh3g4]} Ne5 15. f4 $11) 14... Qf6 $146 {[%emt 0:28:15]} ({Predecessor:} 14... Rb8 15. Qd2 c5 16. Rad1 Bb7 17. Nd5 Bd4 18. b3 Qd7 19. Bxg4 fxg4 20. Be3 Bxe3 21. Qxe3 {1-0 (34) Lenderman,A (2601)-Becerra Rivero,J (2551) ICC INT 2014}) 15. Qd2 {[%emt 0:07:12][%cal Oc4c5]} Ba6 {[%emt 0:08:07]} 16. Rac1 {[%emt 0:02:55]} Qd4 {[%emt 0:04:48]} 17. h3 {[%emt 0:07:00]} Qxd2 {[%emt 0:01:00]} 18. Bxd2 {[%emt 0:00:05]} Ne5 {[%emt 0:02:55]} 19. b3 {[%emt 0:02:12]} f4 {[%emt 0:04:03]} 20. f3 {[%emt 0:01:19]} Bb7 {[%emt 0:04:42]} 21. Rfe1 {[%emt 0:06:06][%cal Bf1e1,Be1e4,Be4a4][%mdl 32]} c5 {[%emt 0:04:16]} 22. Nd5 {[%emt 0:03:55]} Bxd5 {[%emt 0:00:45]} 23. cxd5 {[%emt 0:00:05]} Nd7 {[%emt 0:00:37]} (23... a5 $14) 24. Bb5 $16 {[%emt 0:01:14]} Bd4+ {[%emt 0:00:32]} 25. Kh1 {[%emt 0:00:48]} Ne5 {[%emt 0:00:53]} 26. Re4 {[%emt 0:01:28]} Rab8 {[%emt 0:02:43]} (26... Rfb8 $142 27. Be2 a5) 27. Ba6 {[%emt 0:02:50]} Ng6 {[%emt 0:00:58]} 28. Rce1 {[%emt 0:16:18]} Be5 {[%emt 0:04:24]} 29. Ra4 {[%emt 0:06:47]} Rf7 {[%emt 0:07:09]} 30. Bd3 {[%emt 0:01:40]} Rb7 {[%emt 0:00:05]} 31. Ree4 {[%emt 0:04:20] White has more active pieces.} Kg7 {[%emt 0:00:56]} 32. Ba6 {[%emt 0:03:01][%cal Bd3a6,Ba6c8,Bc8d7,Bd7e6,Be6c4][%mdl 32]} Rb6 {[%emt 0:01:00]} 33. Bc8 {[%emt 0:01:58] Black must now prevent Be6. This bishop pair is nice.} Rf8 {[%emt 0:01:05]} 34. Bd7 {[%emt 0:03:18]} Ne7 {[%emt 0:01:24]} (34... a6 $142) 35. Rxa7 {[%emt 0:04:58] Ba5 is the strong threat.} Nxd5 {[%emt 0:00:26]} 36. Be6 $36 {[%emt 0:00:08][%mdl 2048] Black is under strong pressure.} Nf6 {[%emt 0:01:28]} (36... Ne3 $16) 37. Rxc7+ $18 {[%emt 0:02:06]} Kg6 {[%emt 0:00:05]} 38. Re1 {[%emt 0:00:51]} Nh5 {[%emt 0:03:12]} 39. Bc4 {[%emt 0:00:31]} Ng3+ {[%emt 0:01:36]} 40. Kh2 {[%emt 0:00:09]} Ra8 $2 {[%emt 0:01:49]} (40... Rbb8 41. Bd3+ Kf6 42. Rxh7 Nf5) 41. a4 {[%emt 0:37:50][%cal Ba2a4,Ba4a5][%mdl 32]} Nf5 {[%emt 0:31:39]} 42. a5 {[%emt 0:00:00]} Rbb8 {[%emt 0:00:00]} 43. Bd5 {[%emt 0:00:00]} Ra6 {[%emt 0:00:00]} 44. Bb7 {[%emt 0:00:00]} Ra7 {[%emt 0:00:00]} 45. a6 {[%emt 0:00:00]} h5 {[%emt 0:00:00]} 46. Re4 {[%emt 0:00:00]} Kg5 {[%emt 0:00:00]} 47. h4+ {[%emt 0:00:00]} Nxh4 {[%emt 0:00:00]} 48. Ba5 {[%emt 0:00:00]} Nf5 {[%emt 0:00:00]} 49. Ra4 {[%emt 0:00:00]} c4 {[%emt 0:00:00]} 50. bxc4 {[%emt 0:00:00]} Bd4 {[%emt 0:00:00] Against Bb6} 51. Rd7 $2 {[%emt 0:00:00]} (51. Rb4 $18 {is more deadly.}) 51... Re8 $2 {[%emt 0:00:00] Loses the game.} (51... Rxa6 $16 {was worth a try.} 52. Bxa6 Rb1) 52. Bd8+ {[%emt 0:00:00]} Kg6 {[%emt 0:00:00] [#] Strongly threatening ...Re1.} 53. c5 {[%emt 0:02:32]} Bxc5 {[%emt 0:00:00]} (53... dxc5 $142 54. Bc7 Kg5) 54. Rxf4 {[%emt 0:00:29]} Re1 {[%emt 0:00:00]} 55. g4 {[%emt 0:00:35]} hxg4 {[%emt 0:00:18]} 56. Rxg4+ {[%emt 0:01:59]} ({Inferior is} 56. fxg4 Re2+ 57. Kh3 Re3+ 58. Rf3 Rxf3+ 59. Bxf3 Rxd7 $11) 56... Kh6 {[%emt 0:00:10]} 57. f4 {[%emt 0:01:44]} (57. Bg5+ $142 Kh5 58. Bf4) 57... Re2+ {[%emt 0:01:02]} 58. Rg2 {[%emt 0:00:13]} Rxg2+ {[%emt 0:01:23]} 59. Kxg2 {[%emt 0:00:06]} Nd4 {[%emt 0:02:45]} 60. Kh3 {[%emt 0:00:46]} (60. Bg5+ $142 Kg6 61. Be4+ Nf5 62. Rxa7 Bxa7 63. Kf3) 60... Ne6 {[%emt 0:00:43]} 61. Kg4 {[%emt 0:00:26] [#] White threatens Bg5+ and mate.} Nxd8 {[%emt 0:02:02]} 62. Rxd8 {[%emt 0:00:04] KRB-KRB} Kg6 {[%emt 0:00:09]} 63. f5+ {[%emt 0:00:33]} Kf6 {[%emt 0:00:05]} 64. Re8 {[%emt 0:00:09]} Kf7 {[%emt 0:01:34]} 65. Re6 {[%emt 0:00:06]} Bb4 {[%emt 0:00:12]} 66. Kf4 {[%emt 0:00:42]} d5 {[%emt 0:00:46]} 67. Ke5 {[%emt 0:00:21] Weighted Error Value: White=0.39/Black=0.44} (67. Bxd5 $142 Kg7 68. Rg6+ Kh7 69. Bb7) 1-0